bitfinex-derivatives/quotes_BTCF0:USTF0_20251109
["timestamp","ask_amount","ask_price","bid_price","bid_amount"]
[1762720494237,0.70567826,104820.0,104810.0,0.64792153]
[1762720494631,0.47886305,104820.0,104810.0,0.64792153]
[1762720494829,0.48386305,104820.0,104810.0,0.64792153]
[1762720495239,0.48386305,104820.0,104810.0,0.28712153]
[1762720495435,0.84166305,104820.0,104810.0,0.28712153]
[1762720495637,0.83966305,104820.0,104810.0,0.28712153]
[1762720496231,0.83866305,104820.0,104810.0,0.28712153]
[1762720497140,0.42084305,104820.0,104810.0,0.64792153]
[1762720498527,0.14785,104820.0,104810.0,0.64792153]
[1762720499233,0.14785,104820.0,104810.0,0.64892153]
[1762720499434,0.14585,104820.0,104810.0,0.64892153]
[1762720503741,0.0739,104820.0,104810.0,0.64892153]
[1762720504246,0.29580867,104820.0,104810.0,0.64892153]
[1762720504741,0.39011867,104820.0,104810.0,0.60798153]
[1762720504938,0.80646867,104820.0,104810.0,0.24718153]
[1762720505139,0.80646867,104820.0,104810.0,0.18806149]
[1762720505646,0.58456,104820.0,104810.0,0.18806149]
[1762720506040,0.58656,104820.0,104810.0,0.00334149]
[1762720506233,0.58756,104820.0,104810.0,0.00234149]
[1762720506434,0.58756,104820.0,104810.0,0.18196149]
[1762720507437,0.58856,104820.0,104810.0,0.18196149]
[1762720507639,0.22776,104820.0,104810.0,0.18196149]
[1762720508146,0.58856,104820.0,104810.0,0.18196149]
[1762720508347,0.59056,104820.0,104810.0,0.18196149]
[1762720508847,0.58756,104820.0,104810.0,0.18196149]
[1762720509040,0.58856,104820.0,104810.0,0.29495153]
[1762720509346,0.17221,104820.0,104810.0,0.65575153]
[1762720509546,0.39477299,104820.0,104810.0,0.65575153]
[1762720509937,0.39377299,104820.0,104810.0,0.65575153]
[1762720510341,0.44832299,104820.0,104810.0,0.29495153]
[1762720510740,0.44832299,104820.0,104810.0,0.23920153]
[1762720510944,0.80912299,104820.0,104810.0,0.23920153]
[1762720512742,0.80912299,104820.0,104810.0,0.09128149]
[1762720513136,0.17021,104820.0,104810.0,0.61779153]
[1762720516432,0.58456,104820.0,104810.0,0.25799153]
[1762720516643,0.58456,104820.0,104810.0,0.24020153]
[1762720517446,0.58656,104820.0,104810.0,0.24020153]
[1762720517842,0.58656,104820.0,104810.0,0.23920153]
[1762720518535,0.58756,104820.0,104810.0,0.23920153]
[1762720519746,0.58856,104820.0,104810.0,0.23920153]
[1762720520648,0.86155305,104820.0,104810.0,0.23920153]
[1762720521539,0.86055305,104820.0,104810.0,0.23920153]
[1762720521745,0.86155305,104820.0,104810.0,0.23920153]
[1762720522644,0.58556,104820.0,104810.0,0.23920153]
[1762720522840,0.58856,104820.0,104810.0,0.23920153]
[1762720523246,0.58856,104820.0,104810.0,0.14852153]
[1762720523642,0.58556,104820.0,104810.0,0.23920153]
[1762720523839,0.58656,104820.0,104810.0,0.23920153]
[1762720524044,0.58756,104820.0,104810.0,0.23920153]
[1762720524444,0.58756,104820.0,104810.0,0.18196149]
[1762720524645,0.86055305,104820.0,104810.0,0.23920153]
[1762720525646,0.86155305,104820.0,104810.0,0.23920153]
[1762720526754,0.86155305,104820.0,104810.0,0.00014346]
[1762720528350,0.86155305,104820.0,104810.0,0.00234149]
[1762720528650,0.86155305,104820.0,104810.0,0.17283149]
[1762720528851,0.86155305,104820.0,104810.0,0.00234149]
[1762720529044,0.71169305,104820.0,104810.0,0.17283149]
[1762720529245,0.43406305,104820.0,104810.0,0.24353153]
[1762720529545,0.84536305,104820.0,104810.0,0.23007153]
[1762720530246,0.84236305,104820.0,104810.0,0.23007153]
[1762720530554,0.84336305,104820.0,104810.0,0.23007153]
[1762720530852,0.84336305,104820.0,104810.0,0.05958153]
[1762720531250,0.84436305,104820.0,104810.0,0.00014346]
[1762720531854,0.84536305,104820.0,104810.0,0.00014346]
[1762720532753,0.57037,104820.0,104810.0,0.00014346]
[1762720533352,0.56837,104820.0,104810.0,0.00014346]
[1762720533555,0.57537,104820.0,104810.0,0.00014346]
[1762720550260,0.84950056,104820.0,104810.0,0.00014346]
[1762720554365,0.57537,104820.0,104810.0,0.00014346]
[1762720560067,0.62697256,104830.0,104810.0,0.36314149]
[1762720560268,0.62697256,104830.0,104810.0,0.56555149]
[1762720561364,0.63097256,104830.0,104810.0,0.56555149]
[1762720562370,0.63097256,104830.0,104810.0,0.62279153]
[1762720564369,0.58762256,104830.0,104810.0,0.62279153]
[1762720564970,0.86186571,104830.0,104810.0,0.62279153]
[1762720565764,0.63904315,104830.0,104810.0,0.62279153]
[1762720566870,0.63904315,104830.0,104810.0,0.56555149]
[1762720567059,0.70732794,104830.0,104810.0,0.62279153]
[1762720569771,0.70732794,104830.0,104810.0,0.26199153]
[1762720573275,0.70732794,104830.0,104820.0,0.05724004]
[1762720573480,0.70732794,104830.0,104810.0,0.20255346]
[1762720573772,0.70732794,104830.0,104820.0,0.05724004]
[1762720573975,0.70732794,104830.0,104810.0,0.20255346]
[1762720574177,0.70732794,104830.0,104820.0,0.05724004]
[1762720574373,0.70332794,104830.0,104810.0,0.20255346]
[1762720574674,0.70632794,104830.0,104820.0,0.05724004]
[1762720575077,0.70632794,104830.0,104810.0,0.20475149]
[1762720575276,0.70632794,104830.0,104820.0,0.05724004]
[1762720575467,0.70632794,104830.0,104810.0,0.20475149]
[1762720575670,0.70632794,104830.0,104820.0,0.05724004]
[1762720576077,0.70632794,104830.0,104810.0,0.20475149]
[1762720576266,0.70632794,104830.0,104820.0,0.05724004]
[1762720576669,0.70632794,104830.0,104810.0,0.20475149]
[1762720576870,0.70632794,104830.0,104820.0,0.18222004]
[1762720577370,0.70632794,104830.0,104820.0,0.20241]
[1762720577572,0.70332794,104830.0,104820.0,0.20241]
[1762720577770,0.70632794,104830.0,104820.0,0.20241]
[1762720578881,0.70632794,104830.0,104820.0,0.26184807]
[1762720579786,0.70632794,104830.0,104820.0,0.18222004]
[1762720580583,0.70632794,104830.0,104810.0,0.20255346]
[1762720580883,0.34552794,104830.0,104810.0,0.56555149]
[1762720581076,0.34552794,104830.0,104820.0,0.05724004]
[1762720581570,0.34552794,104830.0,104820.0,0.04673]
[1762720583183,0.003,104830.0,104820.0,0.04673]
[1762720583782,0.003,104830.0,104820.0,0.12498]
[1762720584082,0.003,104830.0,104820.0,0.04673]
[1762720584878,0.003,104830.0,104820.0,0.20241]
[1762720585780,0.003,104830.0,104820.0,0.20460803]
[1762720586082,0.003,104830.0,104820.0,0.08044803]
[1762720586283,0.0729,104830.0,104820.0,0.00219803]
[1762720586983,0.0729,104830.0,104820.0,0.08198803]
[1762720587186,0.0729,104830.0,104820.0,0.25683807]
[1762720587684,0.0729,104830.0,104820.0,0.32895807]
[1762720589184,0.07577966,104830.0,104820.0,0.32895807]
[1762720591980,0.48702801,104830.0,104820.0,0.32895807]
[1762720593888,0.07577966,104830.0,104820.0,0.32895807]
[1762720596689,0.0729,104830.0,104820.0,0.32895807]
[1762720596889,0.07588416,104830.0,104820.0,0.32895807]
[1762720599179,0.07808219,104830.0,104820.0,0.32236176]
[1762720600292,0.48990025,104830.0,104820.0,0.32236176]
[1762720600487,0.53072025,104830.0,104820.0,0.32236176]
[1762720602797,0.53072025,104830.0,104820.0,0.27886662]
[1762720603395,0.87390272,104830.0,104820.0,0.27886662]
[1762720604096,0.87390272,104830.0,104820.0,0.17742269]
[1762720604297,0.46208466,104830.0,104820.0,0.17742269]
[1762720609010,0.46208466,104830.0,104820.0,0.24740269]
[1762720609302,0.46208466,104830.0,104820.0,0.30115196]
[1762720610300,0.46208466,104830.0,104820.0,0.66195196]
[1762720610301,0.42126466,104830.0,104820.0,0.66195196]
[1762720610901,0.47046466,104830.0,104820.0,0.61846105]
[1762720611101,0.5944005,104830.0,104820.0,0.61846105]
[1762720611295,0.62157985,104830.0,104820.0,0.61846105]
[1762720611500,0.27839738,104830.0,104820.0,0.61846105]
[1762720612507,0.27739738,104830.0,104820.0,0.61846105]
[1762720613093,0.35166738,104830.0,104820.0,0.61846105]
[1762720614205,0.35166738,104830.0,104820.0,0.36474947]
[1762720615002,0.40415,104850.0,104820.0,0.3669475]
[1762720615212,0.04335,104850.0,104830.0,0.68073]
[1762720615409,0.04335,104850.0,104830.0,0.68292803]
[1762720616010,0.04735,104850.0,104830.0,0.68292803]
[1762720616210,0.06075661,104850.0,104830.0,0.68292803]
[1762720617205,0.01740661,104850.0,104840.0,0.09457]
[1762720617511,0.01640661,104850.0,104840.0,0.36443]
[1762720617710,0.01640661,104850.0,104840.0,0.36662803]
[1762720618108,0.42994876,104850.0,104840.0,0.36662803]
[1762720618713,0.42894876,104850.0,104840.0,0.36662803]
[1762720619012,0.58764876,104850.0,104840.0,0.36662803]
[1762720620713,0.42894876,104850.0,104840.0,0.72742803]
[1762720622214,0.43094876,104850.0,104840.0,0.72742803]
[1762720622414,0.42794876,104850.0,104840.0,0.72742803]
[1762720624215,0.01640661,104850.0,104840.0,0.72742803]
[1762720629419,0.35908425,104850.0,104840.0,0.72742803]
[1762720631420,0.01640661,104850.0,104840.0,0.72742803]
[1762720632221,0.42794876,104850.0,104840.0,0.72742803]
[1762720632927,0.42694876,104850.0,104840.0,0.72742803]
[1762720633224,0.42794876,104850.0,104840.0,0.72742803]
[1762720634126,0.01540661,104850.0,104840.0,0.72742803]
[1762720634321,0.35810022,104850.0,104840.0,0.72742803]
[1762720638124,0.01540661,104850.0,104840.0,0.72742803]
[1762720639430,0.17410661,104850.0,104840.0,0.72742803]
[1762720639629,0.01540661,104850.0,104840.0,0.72742803]
[1762720639828,0.35804303,104850.0,104840.0,0.72742803]
[1762720641935,0.01540661,104850.0,104840.0,0.72742803]
[1762720645439,0.30456,104840.0,104830.0,0.70078346]
[1762720645638,0.30555913,104840.0,104830.0,0.70271503]
[1762720645937,0.30555913,104840.0,104830.0,0.34140045]
[1762720646832,0.28079913,104840.0,104830.0,0.34340045]
[1762720647332,0.32415,104830.0,104820.0,0.3608]
[1762720647532,0.45944913,104830.0,104810.0,0.44375]
[1762720647831,0.36179913,104830.0,104820.0,0.26607]
[1762720648131,0.72259913,104830.0,104820.0,0.26607]
[1762720648533,0.72259913,104830.0,104820.0,0.44375]
[1762720649535,0.72459913,104830.0,104820.0,0.44375]
[1762720649737,0.88329913,104830.0,104820.0,0.44375]
[1762720652529,0.41299,104820.0,104810.0,0.10700346]
[1762720652731,0.99687293,104820.0,104810.0,0.44582503]
[1762720653932,0.77478913,104820.0,104810.0,0.44782503]
[1762720654930,0.68594913,104820.0,104810.0,0.44782503]
[1762720657527,0.96000938,104820.0,104810.0,0.44782503]
[1762720659440,1.0285337,104820.0,104810.0,0.44782503]
[1762720661541,0.68594913,104820.0,104810.0,0.44782503]
[1762720663242,0.84464913,104820.0,104810.0,0.44782503]
[1762720670042,1.06648959,104820.0,104810.0,0.44782503]
[1762720670743,0.88934959,104820.0,104810.0,0.44782503]
[1762720671148,0.66750913,104820.0,104810.0,0.44782503]
[1762720671349,0.84891913,104820.0,104810.0,0.44782503]
[1762720671552,1.1915037,104820.0,104810.0,0.44782503]
[1762720677550,0.84891913,104820.0,104810.0,0.44782503]
[1762720678454,1.19179467,104820.0,104810.0,0.44782503]
[1762720680347,0.84891913,104820.0,104810.0,0.44782503]
[1762720680546,1.19182402,104820.0,104810.0,0.44782503]
[1762720680748,0.83102402,104820.0,104810.0,0.44782503]
[1762720680952,1.19182402,104820.0,104810.0,0.44782503]
[1762720683654,0.83102402,104820.0,104810.0,0.44782503]
[1762720685953,1.19182402,104820.0,104810.0,0.44782503]
[1762720686355,1.27004402,104820.0,104810.0,0.33903346]
[1762720686657,0.92713913,104820.0,104810.0,0.33903346]
[1762720687554,0.92713913,104820.0,104810.0,0.31735885]
[1762720689051,1.33863893,104820.0,104810.0,0.18035]
[1762720689259,1.68155467,104820.0,104810.0,0.34651]
[1762720690947,1.27005487,104820.0,104800.0,0.00014346]
[1762720691153,0.3437,104800.0,104790.0,0.45137]
[1762720691463,1.21238399,104800.0,104790.0,0.34644157]
[1762720691758,0.4452,104790.0,104780.0,0.45414168]
[1762720691958,0.44619913,104790.0,104780.0,0.34728168]
[1762720692758,0.60489913,104790.0,104780.0,0.34728168]
[1762720692960,0.96569913,104790.0,104780.0,0.35328168]
[1762720693354,0.80699913,104790.0,104780.0,0.35328168]
[1762720693763,0.80699913,104790.0,104780.0,0.35828168]
[1762720695251,1.08128399,104790.0,104780.0,0.35828168]
[1762720695562,1.08128399,104790.0,104780.0,0.36021325]
[1762720699059,0.97978399,104790.0,104780.0,0.45801325]
[1762720700258,0.97978399,104790.0,104780.0,0.81881325]
[1762720700259,0.61898399,104790.0,104780.0,0.81881325]
[1762720702566,0.61898399,104790.0,104780.0,0.80186981]
[1762720703359,0.50339913,104790.0,104780.0,0.80186981]
[1762720703767,0.60489913,104790.0,104780.0,0.80186981]
[1762720703966,0.60489913,104790.0,104780.0,0.70531]
[1762720706368,0.60639648,104790.0,104780.0,0.70531]
[1762720706767,0.16808648,104790.0,104780.0,0.70531]
[1762720706961,0.00249648,104790.0,104780.0,0.70531]
[1762720707358,0.17404648,104790.0,104780.0,0.70531]
[1762720707559,0.43711648,104790.0,104780.0,0.70531]
[1762720708155,0.79791648,104790.0,104780.0,0.34451]
[1762720709457,0.80291648,104790.0,104780.0,0.34551]
[1762720709867,0.79891648,104790.0,104780.0,0.34451]
[1762720710063,0.80191648,104790.0,104780.0,0.34551]
[1762720710258,0.80691648,104790.0,104780.0,0.34551]
[1762720710464,0.80691648,104790.0,104780.0,0.001]
[1762720711570,0.96561648,104790.0,104780.0,0.001]
[1762720711769,0.43462,104780.0,104770.0,0.33176]
[1762720711965,0.43681803,104780.0,104770.0,0.33176]
[1762720712365,0.43833356,104780.0,104770.0,0.33176]
[1762720712772,0.44133356,104780.0,104770.0,0.33176]
[1762720713164,0.44433356,104780.0,104770.0,0.33176]
[1762720713471,0.60303356,104780.0,104770.0,0.33176]
[1762720714665,1.23774346,104780.0,104770.0,0.16437]
[1762720714976,0.43462,104770.0,104760.0,0.33190346]
[1762720715178,0.43681803,104770.0,104760.0,0.33190346]
[1762720716073,0.43781803,104770.0,104760.0,0.33190346]
[1762720716275,0.43981803,104770.0,104760.0,0.33190346]
[1762720717072,0.7137609,104770.0,104760.0,0.33190346]
[1762720717574,0.43462,104760.0,104750.0,0.33653304]
[1762720717774,0.79761803,104760.0,104750.0,0.33653304]
[1762720717961,0.79761803,104760.0,104750.0,0.33453304]
[1762720718774,0.80061803,104760.0,104750.0,0.33453304]
[1762720719072,0.80361803,104760.0,104750.0,0.33453304]
[1762720719267,0.80513356,104760.0,104750.0,0.33453304]
[1762720720366,1.07912884,104760.0,104750.0,0.33453304]
[1762720721278,1.42204458,104760.0,104750.0,0.13936838]
[1762720722271,1.1480493,104760.0,104750.0,0.13936838]
[1762720723277,0.80513356,104760.0,104750.0,0.13936838]
[1762720723679,0.96383356,104760.0,104750.0,0.13936838]
[1762720730383,0.96383356,104760.0,104750.0,0.05692676]
[1762720735387,1.23705922,104760.0,104750.0,0.05692676]
[1762720739575,1.07835922,104760.0,104750.0,0.05692676]
[1762720739775,0.71755922,104760.0,104750.0,0.41772676]
[1762720741587,0.44433356,104760.0,104750.0,0.41772676]
[1762720742783,0.44433356,104760.0,104750.0,0.65636676]
[1762720743293,0.44433356,104760.0,104750.0,0.41772676]
[1762720743589,0.23197195,104760.0,104750.0,0.66636675]
[1762720744584,0.00971356,104760.0,104750.0,0.66636675]
[1762720745289,0.00971356,104760.0,104750.0,0.42772675]
[1762720745490,0.00971356,104760.0,104750.0,0.66636675]
[1762720745690,0.00671356,104760.0,104750.0,0.42872675]
[1762720745993,0.28036987,104760.0,104750.0,0.66736675]
[1762720746186,0.49975043,104760.0,104750.0,0.66936675]
[1762720746387,0.50075043,104760.0,104750.0,0.66936675]
[1762720746590,0.50075043,104760.0,104750.0,0.43072675]
[1762720746890,0.50075043,104760.0,104750.0,0.66936675]
[1762720747088,0.50075043,104760.0,104750.0,0.43072675]
[1762720747286,0.50075043,104760.0,104750.0,0.66936675]
[1762720747882,0.22709412,104760.0,104750.0,0.66936675]
[1762720748590,0.00471356,104760.0,104750.0,0.66936675]
[1762720748895,0.69823977,104780.0,104770.0,0.00999999]
[1762720749095,0.3758478,104780.0,104770.0,0.73159999]
[1762720749297,0.61891354,104780.0,104770.0,0.60876171]
[1762720749989,0.34825723,104780.0,104770.0,0.60876171]
[1762720750198,0.34825723,104780.0,104770.0,0.37016171]
[1762720750495,0.34925723,104780.0,104770.0,0.60876171]
[1762720751493,0.00634149,104780.0,104770.0,0.60876171]
[1762720752297,0.26591149,104780.0,104770.0,0.60876171]
[1762720753194,0.26591149,104780.0,104770.0,0.37016171]
[1762720753398,0.26591149,104780.0,104770.0,0.60876171]
[1762720753589,0.09722149,104780.0,104770.0,0.60876171]
[1762720753790,0.37076936,104780.0,104770.0,0.60876171]
[1762720754191,0.37076936,104780.0,104770.0,0.37016171]
[1762720754391,0.37076936,104780.0,104770.0,0.60876171]
[1762720754591,0.37076936,104780.0,104770.0,0.37016171]
[1762720754794,0.53945936,104780.0,104770.0,0.60876171]
[1762720755595,0.53945936,104780.0,104770.0,0.37016171]
[1762720755988,0.69535936,104780.0,104770.0,0.60876171]
[1762720756599,0.69535936,104780.0,104770.0,0.37016171]
[1762720756991,0.91764369,104780.0,104770.0,0.60876171]
[1762720757706,0.64409582,104780.0,104770.0,0.37016171]
[1762720757995,0.64409582,104780.0,104770.0,0.60876171]
[1762720758195,0.42181149,104780.0,104770.0,0.37016171]
[1762720758392,0.41881149,104780.0,104770.0,0.60976171]
[1762720758794,0.00334149,104780.0,104770.0,0.61276171]
[1762720759795,0.26291149,104780.0,104770.0,0.61276171]
[1762720760195,0.26291149,104780.0,104770.0,0.37416171]
[1762720760498,0.41881149,104780.0,104770.0,0.61276171]
[1762720760696,0.41881149,104780.0,104770.0,0.37416171]
[1762720760896,0.41881149,104780.0,104770.0,0.61276171]
[1762720761089,0.41881149,104780.0,104770.0,0.01336171]
[1762720763893,0.77961149,104780.0,104770.0,0.004]
[1762720764194,0.41547,104770.0,104760.0,0.00014346]
[1762720764392,0.77846803,104770.0,104760.0,0.00014346]
[1762720764996,1.37846803,104770.0,104760.0,0.00014346]
[1762720765193,0.77846803,104770.0,104760.0,0.00014346]
[1762720765393,0.32459,104750.0,104740.0,0.3608]
[1762720765697,0.41766803,104750.0,104740.0,0.3608]
[1762720766800,0.64054843,104750.0,104740.0,0.3648]
[1762720767302,0.64054843,104750.0,104740.0,0.3678]
[1762720772502,0.38376,104740.0,104730.0,9.562e-05]
[1762720772708,0.96863843,104740.0,104730.0,9.562e-05]
[1762720773702,0.96863843,104740.0,104730.0,0.00509562]
[1762720773906,0.74675803,104740.0,104730.0,0.00509562]
[1762720774308,0.74775803,104740.0,104730.0,0.00909562]
[1762720775601,0.96997221,104740.0,104730.0,0.00909562]
[1762720778203,0.38376,104730.0,104720.0,0.36557441]
[1762720778408,0.38595803,104730.0,104720.0,0.36557441]
[1762720779807,0.38595803,104730.0,104720.0,0.36957441]
[1762720780511,0.38695803,104730.0,104720.0,0.36957441]
[1762720780912,0.38695803,104730.0,104720.0,0.00877441]
[1762720792524,0.38695803,104730.0,104720.0,0.36957441]
[1762720794529,0.38695803,104730.0,104720.0,0.60829441]
[1762720795032,0.38695803,104730.0,104720.0,0.36957441]
[1762720795224,0.38695803,104730.0,104720.0,0.60829441]
[1762720795828,0.38695803,104730.0,104720.0,0.36957441]
[1762720796123,0.38695803,104730.0,104720.0,0.60829441]
[1762720796330,0.38695803,104730.0,104720.0,0.36957441]
[1762720797027,0.38695803,104730.0,104720.0,0.60829441]
[1762720798627,0.38695803,104730.0,104720.0,0.36957441]
[1762720799334,0.38695803,104730.0,104720.0,0.60829441]
[1762720799733,0.38695803,104730.0,104720.0,0.36957441]
[1762720800032,0.38695803,104730.0,104720.0,0.60829441]
[1762720801323,0.38695803,104730.0,104720.0,0.36957441]
[1762720801637,0.38695803,104730.0,104720.0,0.60829441]
[1762720802234,0.38695803,104730.0,104720.0,0.36957441]
[1762720807453,0.001,104730.0,104720.0,0.60829441]
[1762720807644,0.08136,104730.0,104720.0,0.60829441]
[1762720807840,0.35887803,104730.0,104720.0,0.60829441]
[1762720808243,0.35887803,104730.0,104720.0,0.36957441]
[1762720808454,0.35887803,104730.0,104720.0,0.60829441]
[1762720808654,0.35887803,104730.0,104720.0,0.36957441]
[1762720808855,0.35887803,104730.0,104720.0,0.60829441]
[1762720809054,0.35887803,104730.0,104720.0,0.36957441]
[1762720809256,0.35887803,104730.0,104720.0,0.60829441]
[1762720810350,0.35887803,104730.0,104720.0,0.36957441]
[1762720810952,0.35887803,104730.0,104720.0,0.60829441]
[1762720811649,0.35887803,104730.0,104720.0,0.36957441]
[1762720811959,0.35887803,104730.0,104720.0,0.60829441]
[1762720815156,0.35887803,104730.0,104720.0,0.36957441]
[1762720815558,0.35887803,104730.0,104720.0,0.60829441]
[1762720817145,0.35887803,104730.0,104720.0,0.36957441]
[1762720818956,0.35887803,104730.0,104720.0,0.60829441]
[1762720824551,0.35887803,104730.0,104720.0,0.36957441]
[1762720824857,0.35887803,104730.0,104720.0,0.60829441]
[1762720827349,0.35668,104730.0,104720.0,0.60829441]
[1762720827555,0.08136,104730.0,104720.0,0.60829441]
[1762720828049,0.08136,104730.0,104720.0,0.36957441]
[1762720828252,0.35490787,104730.0,104720.0,0.36957441]
[1762720828452,0.48148787,104730.0,104720.0,0.60829441]
[1762720828654,0.48148787,104730.0,104720.0,0.36957441]
[1762720828850,0.60314787,104730.0,104720.0,0.60829441]
[1762720829161,0.6053459,104730.0,104720.0,0.51697441]
[1762720829464,0.6053459,104730.0,104720.0,0.75569441]
[1762720829764,0.6053459,104730.0,104720.0,0.51697441]
[1762720829966,0.6053459,104730.0,104720.0,0.75569441]
[1762720830162,0.6053459,104730.0,104720.0,0.51697441]
[1762720830461,0.82773411,104730.0,104720.0,0.51697441]
[1762720831664,0.6053459,104730.0,104720.0,0.51697441]
[1762720832264,0.33179803,104730.0,104720.0,0.51697441]
[1762720834767,0.55425225,104730.0,104720.0,0.51697441]
[1762720835970,0.55425225,104730.0,104720.0,0.75569441]
[1762720836167,0.55425225,104730.0,104720.0,0.51697441]
[1762720836366,0.55425225,104730.0,104720.0,0.75569441]
[1762720836567,0.55425225,104730.0,104720.0,0.51697441]
[1762720836868,0.55425225,104730.0,104720.0,0.75569441]
[1762720838463,0.33179803,104730.0,104720.0,0.75569441]
[1762720839262,0.33179803,104730.0,104720.0,0.51697441]
[1762720839458,0.33179803,104730.0,104720.0,0.75569441]
[1762720839667,0.55425225,104730.0,104720.0,0.75569441]
[1762720840867,0.33179803,104730.0,104720.0,0.75569441]
[1762720842268,0.33179803,104730.0,104720.0,0.51697441]
[1762720842569,0.33179803,104730.0,104720.0,0.75569441]
[1762720844472,0.55425225,104730.0,104720.0,0.75569441]
[1762720844667,0.55425225,104730.0,104720.0,0.51697441]
[1762720844869,0.55425225,104730.0,104720.0,0.75569441]
[1762720845571,0.55425225,104730.0,104720.0,0.51697441]
[1762720845774,0.33179803,104730.0,104720.0,0.51697441]
[1762720845966,0.33179803,104730.0,104720.0,0.75569441]
[1762720846666,0.33179803,104730.0,104720.0,0.51697441]
[1762720846972,0.33179803,104730.0,104720.0,0.75569441]
[1762720847169,0.33179803,104730.0,104720.0,0.51697441]
[1762720847374,0.33179803,104730.0,104720.0,0.75569441]
[1762720847682,0.33179803,104730.0,104720.0,0.51697441]
[1762720847872,0.33179803,104730.0,104720.0,0.75569441]
[1762720848175,0.33179803,104730.0,104720.0,0.51697441]
[1762720848377,0.33179803,104730.0,104720.0,0.75569441]
[1762720848674,0.33179803,104730.0,104720.0,0.51697441]
[1762720848977,0.32390803,104730.0,104720.0,0.75569441]
[1762720851172,0.32390803,104730.0,104720.0,0.51697441]
[1762720857181,0.32390803,104730.0,104720.0,0.51497441]
[1762720858582,0.32390803,104730.0,104720.0,0.36757441]
[1762720864488,0.32390803,104730.0,104720.0,0.60629441]
[1762720864489,0.32171,104730.0,104720.0,0.60629441]
[1762720864786,0.32171,104730.0,104720.0,0.36757441]
[1762720864987,0.32171,104730.0,104720.0,0.60629441]
[1762720865182,0.08136,104730.0,104720.0,0.60629441]
[1762720865788,0.30415469,104730.0,104720.0,0.60629441]
[1762720866179,0.30272494,104730.0,104720.0,0.36757441]
[1762720866378,0.30272494,104730.0,104720.0,0.60629441]
[1762720866582,0.30272494,104730.0,104720.0,0.36757441]
[1762720867082,0.22279469,104730.0,104720.0,0.60629441]
[1762720867284,0.28707469,104730.0,104720.0,0.75369441]
[1762720868080,0.06428,104730.0,104720.0,0.75369441]
[1762720869181,0.28707469,104730.0,104720.0,0.75369441]
[1762720869790,0.28707469,104730.0,104720.0,0.51497441]
[1762720869988,0.28707469,104730.0,104720.0,0.75369441]
[1762720870286,0.28707469,104730.0,104720.0,0.51497441]
[1762720870491,0.06428,104730.0,104720.0,0.75369441]
[1762720870793,0.06428,104730.0,104720.0,0.51497441]
[1762720870981,0.06428,104730.0,104720.0,0.75369441]
[1762720871286,0.06428,104730.0,104720.0,0.51497441]
[1762720871486,0.06428,104730.0,104720.0,0.75369441]
[1762720872081,0.17508,104730.0,104720.0,0.75369441]
[1762720872282,0.17508,104730.0,104720.0,0.51497441]
[1762720872490,0.06428,104730.0,104720.0,0.75369441]
[1762720872689,0.27791,104730.0,104720.0,0.75369441]
[1762720872886,0.17508,104730.0,104720.0,0.75369441]
[1762720874491,0.06428,104730.0,104720.0,0.75369441]
[1762720876087,0.06428,104730.0,104720.0,0.51497441]
[1762720876289,0.06428,104730.0,104720.0,0.61049101]
[1762720876496,0.27791,104730.0,104720.0,0.75369441]
[1762720876884,0.28010803,104730.0,104720.0,0.75369441]
[1762720877695,0.28010803,104730.0,104720.0,0.51497441]
[1762720877994,0.28010803,104730.0,104720.0,0.75369441]
[1762720878183,0.28010803,104730.0,104720.0,0.51497441]
[1762720878380,0.28010803,104730.0,104720.0,0.75369441]
[1762720878582,0.28010803,104730.0,104720.0,0.51497441]
[1762720878779,0.06428,104730.0,104720.0,0.61049101]
[1762720878993,0.06428,104730.0,104720.0,0.75369441]
[1762720879192,0.17508,104730.0,104720.0,0.75369441]
[1762720879596,0.27791,104730.0,104720.0,0.51497441]
[1762720879890,0.27791,104730.0,104720.0,0.84921101]
[1762720880092,0.27791,104730.0,104720.0,0.61049101]
[1762720880395,0.27791,104730.0,104720.0,0.84921101]
[1762720880593,0.27791,104730.0,104720.0,0.61049101]
[1762720880997,0.27791,104730.0,104720.0,0.75369441]
[1762720881695,0.27791,104730.0,104720.0,0.51497441]
[1762720881893,0.27791,104730.0,104720.0,0.75369441]
[1762720882690,0.27791,104730.0,104720.0,0.84921101]
[1762720883287,0.27791,104730.0,104720.0,0.61049101]
[1762720883488,0.06428,104730.0,104720.0,0.84921101]
[1762720883788,0.09088,104750.0,104730.0,0.3342275]
[1762720883789,0.30451,104750.0,104730.0,0.3342275]
[1762720883988,0.30451,104750.0,104740.0,0.3608]
[1762720884291,0.30670803,104750.0,104740.0,0.3608]
[1762720884491,0.30670803,104750.0,104740.0,0.59948]
[1762720884690,0.30670803,104750.0,104740.0,0.3608]
[1762720884891,0.52950272,104750.0,104740.0,0.3608]
[1762720885290,0.53050272,104750.0,104740.0,0.3608]
[1762720886098,0.30770803,104750.0,104740.0,0.3608]
[1762720887195,0.30770803,104750.0,104740.0,0.3618]
[1762720887689,0.30770803,104750.0,104740.0,0.60048]
[1762720887888,0.30770803,104750.0,104740.0,0.74788]
[1762720888090,0.30770803,104750.0,104740.0,0.5092]
[1762720888497,0.30770803,104750.0,104740.0,0.74788]
[1762720889298,0.30770803,104750.0,104740.0,0.5092]
[1762720889489,0.30770803,104750.0,104740.0,0.74788]
[1762720890596,0.30551,104750.0,104740.0,0.74788]
[1762720891397,0.30551,104750.0,104740.0,0.5092]
[1762720891899,0.30551,104750.0,104740.0,0.74788]
[1762720892395,0.30551,104750.0,104740.0,0.5092]
[1762720892900,0.30551,104750.0,104740.0,0.74788]
[1762720893097,0.30551,104750.0,104740.0,0.5092]
[1762720893300,0.30770803,104750.0,104740.0,0.5092]
[1762720893487,0.30770803,104750.0,104740.0,0.74788]
[1762720893691,0.30770803,104750.0,104740.0,0.5092]
[1762720894899,0.30770803,104750.0,104740.0,0.74788]
[1762720895194,0.30670803,104750.0,104740.0,0.74788]
[1762720895390,0.30770803,104750.0,104740.0,0.5092]
[1762720895999,0.30770803,104750.0,104740.0,0.5122]
[1762720904108,0.53050272,104750.0,104740.0,0.5122]
[1762720904611,0.53050272,104750.0,104740.0,0.873]
[1762720907618,0.2403,104740.0,104730.0,0.36094346]
[1762720907818,0.46529272,104740.0,104730.0,0.36094346]
[1762720909117,0.46529272,104740.0,104730.0,0.45194346]
[1762720909311,0.46529272,104740.0,104730.0,0.54190346]
[1762720910025,0.46629272,104740.0,104730.0,0.54190346]
[1762720910723,0.46629272,104740.0,104730.0,0.36294346]
[1762720910922,0.46629272,104740.0,104730.0,0.54190346]
[1762720911422,0.24349803,104740.0,104730.0,0.54190346]
[1762720912422,0.24349803,104740.0,104730.0,0.45194346]
[1762720912622,0.24349803,104740.0,104730.0,0.36294346]
[1762720914124,0.24349803,104740.0,104730.0,3.46e-06]
[1762720918728,0.24213,104730.0,104720.0,0.21796787]
[1762720919024,0.24432803,104730.0,104720.0,0.21796787]